bitfinex-derivatives/quotes_SOLF0:USTF0_20241027
["timestamp","ask_amount","ask_price","bid_price","bid_amount"]
[1730059680813,2.828,177.01,176.99,9.7755748]
[1730059681418,4.1,177.07,177.0,6.9473748]
[1730059681611,2.8277,177.03,177.02,6.9473748]
[1730059686415,11.0473748,177.06,176.98,1.2398]
[1730059686615,2.8279,177.01,177.0,6.9473748]
[1730059694920,6.9473748,177.03,176.98,1.2398]
[1730059695121,6.9473748,177.03,176.98,6.9473748]
[1730059695923,2.8281,177.0,176.98,9.7756748]
[1730059696121,5.3638,177.06,176.96,6.9473748]
[1730059696122,6.9473748,177.02,176.96,6.9473748]
[1730059696320,11.0473748,177.02,176.96,6.9473748]
[1730059696926,2.8283,176.99,176.96,9.7759748]
[1730059697226,6.9473748,177.0,176.93,138.28954466]
[1730059697422,6.9473748,177.0,176.94,11.77006905]
[1730059697726,2.8285,176.98,176.95,7.65173236]
[1730059697925,2.8285,176.98,176.95,2.8289]
[1730059698312,6.9473748,177.0,176.95,2.8289]
[1730059698526,2.8286,176.97,176.95,2.8289]
[1730059699421,2.8286,176.97,176.94,6.9473748]
[1730059699618,2.8286,176.97,176.94,9.7762748]
[1730059700227,2.8289,176.95,176.93,138.28954466]
[1730059700427,6.9473748,176.99,176.93,145.23691946]
[1730059701129,6.9473748,176.99,176.94,2.829]
[1730059701327,6.9473748,176.99,176.91,5.3629]
[1730059701328,6.9473748,176.97,176.91,6.9473748]
[1730059702426,2.8288,176.96,176.93,9.7765748]
[1730059704127,2.8289,176.95,176.92,9.7765748]
[1730059705423,2.8291,176.94,176.91,9.7767748]
[1730059709942,2.8291,176.94,176.91,2.8294]
[1730059712034,2.8291,176.94,176.9,8.1082748]
[1730059712341,6.9473748,176.96,176.9,8.1082748]
[1730059712745,2.8291,176.94,176.91,2.8295]
[1730059719440,2.8291,176.94,176.92,2.8293]
[1730059725048,54.98,177.07,176.93,6.9473748]
[1730059725249,2.8274,177.05,177.01,2.8279]
[1730059725545,9.7747748,177.05,177.01,2.8279]
[1730059725948,1.1942,177.11,177.01,6.9473748]
[1730059726141,1.1942,177.11,176.97,4.1]
[1730059726142,9.7741748,177.08,177.03,2.8275]
[1730059726450,4.1,177.1,177.04,6.9473748]
[1730059726653,6.9473748,177.09,177.04,6.9473748]
[1730059728254,2.8268,177.08,177.04,9.7747748]
[1730059732149,9.7741748,177.08,177.04,9.7747748]
[1730059739258,9.7741748,177.08,177.05,2.8272]
[1730059741061,2.8271,177.07,177.03,2.8275]
[1730059742465,2.8271,177.07,177.04,2.8274]
[1730059744565,2.827,177.07,177.04,2.8274]
[1730059748058,2.827,177.07,177.03,6.9473748]
[1730059748265,2.8272,177.06,177.04,2.8274]
[1730059749367,6.9473748,177.08,177.04,2.8274]
[1730059749368,2.827,177.07,177.04,2.8274]
[1730059757273,2.8151165,177.14,177.07,2.8268]
[1730059757469,5.3492,177.13,177.09,6.9473748]
[1730059757875,2.8262,177.12,177.09,9.7739748]
[1730059758270,5.3492,177.13,177.09,9.7739748]
[1730059758473,2.8263,177.11,177.09,6.9473748]
[1730059761482,2.8263,177.11,177.08,9.7740748]
[1730059761675,127.34079574,177.16,177.04,4.08]
[1730059761676,127.34079574,177.16,177.09,6.9473748]
[1730059761882,131.42079574,177.16,177.12,6.9473748]
[1730059763384,2.8259,177.14,177.12,6.9473748]
[1730059764976,2.8259,177.14,177.11,2.8262]
[1730059766584,6.9473748,177.14,177.05,2.3241]
[1730059766781,6.9473748,177.11,177.05,13.3514748]
[1730059766977,6.9473748,177.09,177.04,6.9473748]
[1730059767581,2.8268,177.08,177.05,2.8271]
[1730059767880,2.8268,177.08,177.04,6.9473748]
[1730059768087,2.8268,177.08,177.06,2.8271]
[1730059769993,6.9473748,177.08,177.04,6.9473748]
[1730059770186,6.9473748,177.08,177.02,6.9473748]
[1730059770390,6.9473748,177.06,177.01,12.2840748]
[1730059770787,2.8275,177.04,177.01,13.8552748]
[1730059770986,2.8275,177.04,177.01,9.7752748]
[1730059774984,2.8275,177.04,177.01,6.9473748]
[1730059775187,2.8275,177.04,177.02,2.8277]
[1730059775791,6.9473748,177.07,177.02,2.8277]
[1730059776094,2.8274,177.05,177.02,2.8277]
[1730059777893,6.9473748,177.05,177.01,6.9473748]
[1730059778096,2.8276,177.04,177.01,2.8278]
[1730059778296,6.9473748,177.05,176.99,9.4034748]
[1730059778694,2.8277,177.03,176.99,9.4034748]
[1730059779985,2.8277,177.03,177.01,2.8278]
[1730059787302,2.8277,177.03,177.01,9.7751748]
[1730059790108,6.9473748,177.05,177.01,9.7751748]
[1730059790310,1.2667,177.1,177.02,6.9473748]
[1730059790514,6.9473748,177.07,177.02,6.9473748]
[1730059790700,2.8274,177.05,177.01,6.9473748]
[1730059791104,2.8274,177.05,177.03,2.8276]
[1730059794315,11.0273748,177.09,177.03,6.9473748]
[1730059795118,2.8269,177.08,177.05,2.8272]
[1730059796208,11.0273748,177.09,177.03,6.9473748]
[1730059796513,11.0273748,177.09,177.03,2.8275]
[1730059796514,9.7745748,177.06,177.03,2.8275]
[1730059798015,2.8273,177.05,177.03,2.8275]
[1730059798717,2.8275,177.04,177.02,2.8277]
[1730059813220,2.8275,177.04,177.01,6.9473748]
[1730059814331,2.8275,177.04,177.02,2.8277]
[1730059830143,2.76411499,177.18,177.03,6.9473748]
[1730059830444,8.2183748,177.11,177.05,6.9473748]
[1730059831042,11.0273748,177.12,177.07,6.9473748]
[1730059831244,6.9473748,177.12,177.07,6.9473748]
[1730059831438,4.08,177.14,177.02,4.08]
[1730059831439,11.0273748,177.14,177.09,6.9473748]
[1730059832053,1.1943,177.17,177.12,2.8261]
[1730059832243,6.9473748,177.16,177.1,6.9473748]
[1730059832848,6.9473748,177.14,177.09,6.9473748]
[1730059834247,2.8262,177.12,177.09,9.7739748]
[1730059836446,2.8259,177.14,177.11,6.9473748]
[1730059837158,2.8251,177.19,177.12,6.9473748]
[1730059837354,4.08,177.2,177.13,6.9473748]
[1730059837655,6.9473748,177.17,177.12,6.9473748]
[1730059837856,2.8259,177.14,177.12,6.9473748]
[1730059838355,6.9473748,177.17,177.12,6.9473748]
[1730059838955,6.9473748,177.15,177.06,1.1802]
[1730059839158,6.9473748,177.13,177.09,2.8266]
[1730059840358,2.8262,177.12,177.09,2.8266]
[1730059841758,2.8264,177.11,177.08,9.7739748]
[1730059843554,2.8264,177.11,177.06,5.2602]
[1730059843555,6.9473748,177.12,177.07,6.9473748]
[1730059843857,6.9473748,177.1,177.05,12.2077748]
[1730059844263,6.9473748,177.11,177.06,6.9473748]
[1730059844664,2.8267,177.09,177.06,9.7743748]
[1730059849164,6.9473748,177.11,177.06,9.7743748]
[1730059849373,2.8267,177.09,177.06,9.7743748]
[1730059849967,9.7736748,177.11,177.08,2.8267]
[1730059850167,6.9473748,177.11,177.06,6.9473748]
[1730059850668,2.8266,177.1,177.07,2.8269]
[1730059851264,2.8267,177.09,177.07,2.8269]
[1730059859874,6.9473748,177.11,177.06,6.9473748]
[1730059860076,6.9473748,177.1,177.05,6.9473748]
[1730059860370,6.9473748,177.1,177.04,6.9473748]
[1730059860570,6.9473748,177.08,177.04,6.9473748]
[1730059861271,2.8272,177.06,177.04,6.9473748]
[1730059861476,2.8272,177.06,177.0,2.4059]
[1730059861477,6.9473748,177.05,177.0,2.828]
[1730059861682,2.8277,177.03,177.0,9.7753748]
[1730059862274,2.8277,177.03,177.01,2.8279]
[1730059862679,2.8277,177.03,177.0,6.9473748]
[1730059863180,2.8277,177.03,177.0,9.7752748]
[1730059863377,6.9473748,177.05,176.99,1.2065]
[1730059863674,6.9473748,177.05,177.0,2.828]
[1730059864070,2.8277,177.03,177.0,2.828]
[1730059865675,2.8277,177.03,177.0,9.7753748]
[1730059866773,6.9473748,177.04,176.97,4.08]
[1730059866969,6.9473748,177.04,176.98,151.13400025]
[1730059867174,4.08,177.05,176.98,151.13400025]
[1730059867378,6.9473748,177.03,176.98,151.13400025]
[1730059867678,4.08,177.05,176.98,144.18662545]
[1730059867679,6.9473748,177.01,176.98,144.18662545]
[1730059868081,2.8282,176.99,176.98,144.18662545]
[1730059869079,6.9473748,177.0,176.92,5.3546]
[1730059869285,2.8289,176.96,176.93,6.9473748]
[1730059869482,6.9473748,176.97,176.85,1.2354]
[1730059869782,6.9473748,176.95,176.9,6.9473748]
[1730059870281,6.9473748,176.95,176.91,2.8294]
[1730059870282,2.8291,176.94,176.91,2.8294]
[1730059870583,6.9473748,176.95,176.89,6.9473748]
[1730059870781,6.9473748,176.94,176.89,9.7771748]
[1730059871385,2.8293,176.93,176.89,9.7771748]
[1730059872682,2.8293,176.93,176.89,2.8298]
[1730059873777,2.8293,176.93,176.9,2.8296]
[1730059874479,2.8293,176.93,176.9,9.7769748]
[1730059878182,1.2163,177.0,176.92,6.9473748]
[1730059878387,2.8288,176.96,176.94,6.9473748]
[1730059879282,2.8289,176.95,176.94,6.9473748]
[1730059879692,2.80187833,177.11,176.94,6.9473748]
[1730059879875,2.4978,177.09,176.98,6.9473748]
[1730059880080,6.9473748,177.05,177.01,2.8279]
[1730059880485,6.9473748,177.05,177.0,6.9473748]
[1730059880787,6.9473748,177.05,176.95,4.08]
[1730059880788,6.9473748,177.04,176.98,6.9473748]
[1730059880987,6.9473748,177.04,176.98,9.7756748]
[1730059881589,2.8279,177.02,176.98,9.7756748]
[1730059882888,2.8279,177.02,176.98,9.73329021]
[1730059887290,2.8279,177.01,176.98,9.73329021]
[1730059890492,2.8279,177.01,176.98,2.8283]
[1730059890691,2.8285,176.98,176.95,9.7762748]
[1730059890986,2.8285,176.98,176.95,6.9473748]
[1730059891394,2.8285,176.98,176.95,2.8288]
[1730059897600,2.8285,176.97,176.95,2.8288]
[1730059897799,6.9473748,176.99,176.93,4.08]
[1730059898000,6.9473748,176.98,176.93,6.9473748]
[1730059898206,6.9473748,176.95,176.86,7.16489658]
[1730059898406,22.26038892,177.09,176.86,7.16489658]
[1730059898407,2.4742,177.01,176.93,6.9473748]
[1730059898603,9.7753748,177.01,176.98,2.8283]
[1730059898801,6.9473748,177.01,176.96,6.9473748]
[1730059899202,2.8282,177.0,176.97,2.8284]
[1730059903814,2.4742,177.08,176.98,6.9473748]
[1730059904005,2.4742,177.08,176.93,4.08]
[1730059904006,4.08,177.07,177.01,6.9473748]
[1730059904204,6.9473748,177.06,177.01,6.9473748]
[1730059904625,2.8274,177.05,177.02,2.8276]
[1730059905113,6.9473748,177.06,177.01,6.9473748]
[1730059905318,2.8274,177.04,177.01,9.7751748]
[1730059908515,1.2625,177.09,176.97,4.08]
[1730059908516,2.8267,177.09,177.06,2.827]
[1730059908717,4.08,177.1,177.03,6.9473748]
[1730059909013,4.08,177.1,177.05,6.9473748]
[1730059909216,6.9065,177.1,177.07,2.8269]
[1730059909513,2.8265,177.1,177.07,2.8269]
[1730059909723,2.8265,177.1,177.07,9.7742748]
[1730059909921,6.9473748,177.09,177.02,3.4983]
[1730059910110,6.9473748,177.08,177.02,10.4456748]
[1730059910315,6.9473748,177.06,177.0,11.0273748]
[1730059911017,2.8273,177.05,177.03,2.8276]
[1730059914224,2.8273,177.05,177.0,11.0273748]
[1730059914420,2.8273,177.05,177.02,2.8277]
[1730059915828,2.8273,177.05,177.0,11.0273748]
[1730059916224,2.8273,177.05,177.02,2.8276]
[1730059923439,6.9473748,177.07,177.01,6.9473748]
[1730059923737,2.8272,177.06,177.03,2.8275]
[1730059925736,2.8268,177.08,177.05,9.7744748]
[1730059926239,2.8271,177.07,177.04,9.7746748]
[1730059926629,2.8271,177.07,177.04,6.9473748]
[1730059928335,2.8271,177.07,177.05,2.8272]
[1730059930741,2.8269,177.08,177.05,2.8272]
[1730059933037,6.9473748,177.09,177.05,2.8272]
[1730059933245,2.827,177.07,177.05,2.8272]
[1730059933743,2.8269,177.08,177.04,6.9473748]
[1730059934345,6.9473748,177.09,177.05,2.8272]
[1730059934543,2.8268,177.08,177.05,2.8272]
[1730059935746,6.9473748,177.09,177.04,6.9473748]
[1730059935944,6.9473748,177.07,177.03,6.9473748]
[1730059936143,6.9473748,177.07,177.01,8.2130748]
[1730059936345,6.9473748,177.05,177.0,6.9473748]
[1730059937341,2.8275,177.04,177.02,2.8277]
[1730059937735,2.8279,177.02,176.99,2.8282]
[1730059938056,2.8279,177.02,176.99,6.9473748]
[1730059939237,2.8279,177.02,177.0,2.828]
[1730059950250,6.9473748,177.03,176.98,2.8283]
[1730059952461,2.8281,177.0,176.98,2.8283]
[1730059965376,2.8277,177.03,177.01,2.8279]
[1730059965585,6.9473748,177.05,177.0,6.9473748]
[1730059966493,2.8278,177.02,177.0,9.7752748]
[1730059967080,2.8276,177.03,177.01,2.8279]
[1730059968985,6.9473748,177.05,177.0,6.9473748]
[1730059969187,2.8277,177.02,177.0,9.7753748]
[1730059974299,2.8277,177.03,177.01,2.8279]
[1730059974999,2.8277,177.02,177.0,9.7753748]
[1730059975294,6.9473748,177.04,176.99,6.9473748]
[1730059976299,6.9473748,177.04,176.99,9.7754748]
[1730059977195,2.8279,177.02,176.99,9.7754748]
[1730059978802,6.9473748,177.04,176.99,9.7754748]
[1730059978995,6.9473748,177.04,176.96,6.4817]
[1730059978996,6.9473748,177.02,176.96,2.4017]
[1730059979193,6.9473748,176.99,176.95,2.8287]
[1730059979495,6.9473748,176.97,176.92,188.3627518]
[1730059979697,6.9473748,176.96,176.92,191.1920518]
[1730059979899,2.829,176.95,176.92,191.1920518]
[1730059983815,2.829,176.95,176.92,188.3627518]
[1730059984101,2.8282,176.99,176.94,6.9473748]
[1730059984301,2.8282,176.99,176.96,6.9473748]
[1730059984701,12.09285869,177.08,176.92,188.3627518]
[1730059984702,4.06,177.03,176.97,6.9473748]
[1730059984892,4.06,177.04,176.99,6.9473748]
[1730059985100,11.0073748,177.05,176.99,6.9473748]
[1730059985398,2.8278,177.02,176.99,9.7754748]
[1730059985603,11.0073748,177.05,176.99,6.9473748]
[1730059986098,6.9473748,177.03,176.96,1.2473]
[1730059986303,6.9473748,177.01,176.95,6.9473748]
[1730059987403,6.9473748,177.01,176.97,2.8284]
[1730059987404,2.8282,177.0,176.97,2.8284]
[1730059988412,2.8283,176.99,176.96,2.8286]
[1730059989999,2.8279,177.02,176.99,2.8281]
[1730059990194,6.9473748,177.03,176.99,2.8281]
[1730059990600,2.8275,177.04,177.01,2.8277]
[1730059991400,2.8275,177.04,177.01,9.7750748]
[1730059991704,2.8276,177.03,177.01,9.7750748]
[1730059992502,6.9473748,177.03,176.96,1.2286]
[1730059992704,6.9473748,177.01,176.97,6.9473748]
[1730059992907,6.9473748,177.01,176.95,8.1838748]
[1730059993103,2.8282,177.0,176.95,2.8288]
[1730059993306,6.9473748,177.0,176.93,5.268]
[1730059993502,6.9473748,177.0,176.95,6.9473748]
[1730059994310,2.8283,176.99,176.96,2.8286]
[1730059995609,6.9473748,176.98,176.93,12.2153748]
[1730059995810,2.8287,176.96,176.94,2.8289]
[1730059997411,2.829,176.95,176.92,195.3101266]
[1730059997911,2.829,176.95,176.92,198.1393266]
[1730059999209,2.829,176.95,176.92,191.1919518]
[1730060007316,2.829,176.94,176.92,191.1919518]
[1730060012133,2.8292,176.93,176.92,188.3627518]
[1730060012424,6.9473748,176.94,176.88,8.1731748]
[1730060012621,6.9473748,176.94,176.89,4.83581561]
[1730060012932,2.8296,176.91,176.88,11.0030748]
[1730060013228,2.8296,176.91,176.89,4.83632816]
[1730060013523,2.8296,176.91,176.88,11.0030748]
[1730060014032,6.9473748,176.93,176.88,1.2258]
[1730060014233,2.83,176.88,176.85,2.8303]
[1730060014432,2.83,176.88,176.86,4.83621628]
[1730060014626,2.83,176.88,176.85,2.8303]
[1730060015041,2.83,176.88,176.86,4.83687014]
[1730060015233,2.83,176.88,176.85,2.8303]
[1730060015534,2.83,176.88,176.86,4.8370563]
[1730060015740,2.83,176.88,176.85,2.8303]
[1730060015938,2.83,176.88,176.86,4.83597061]
[1730060016136,2.83,176.88,176.85,2.8303]
[1730060017136,2.83,176.88,176.86,2.8303]
[1730060020039,2.8299,176.89,176.86,2.8303]
[1730060023539,9.7772748,176.89,176.86,2.8303]
[1730060031550,3.5557,176.96,176.86,6.9473748]
[1730060031752,6.9473748,176.95,176.89,6.9473748]
[1730060031952,1.1596,176.96,176.89,6.9473748]
[1730060032153,1.1596,176.96,176.91,6.9473748]
[1730060032154,2.829,176.95,176.91,6.9473748]
[1730060033255,6.9473748,176.94,176.88,4.83273474]
[1730060033454,6.9473748,176.94,176.89,6.9473748]
[1730060033658,6.9473748,176.94,176.9,2.8296]
[1730060034656,6.9473748,176.92,176.9,2.8296]
[1730060034848,6.9473748,176.92,176.89,2.8298]
[1730060035053,6.9473748,176.91,176.89,2.8298]
[1730060035451,9.7769748,176.91,176.88,2.8299]
[1730060035850,6.9473748,176.91,176.88,2.8299]
[1730060036252,6.9473748,176.9,176.88,2.8299]
[1730060036649,6.9473748,176.9,176.85,6.07881803]
[1730060036848,9.7771748,176.9,176.87,2.8301]
[1730060037049,6.9473748,176.9,176.85,1.2403]
[1730060037455,2.8299,176.89,176.86,2.8302]
[1730060043862,6.9473748,176.9,176.86,2.8302]
[1730060044065,6.9473748,176.89,176.82,6.4412]
[1730060044267,6.9473748,176.87,176.83,4.84439472]
[1730060044561,6.9473748,176.87,176.81,6.9473748]
[1730060044763,2.8306,176.85,176.82,7.67578426]
[1730060044958,2.8306,176.85,176.82,2.8308]
[1730060045761,2.8306,176.85,176.81,6.9473748]
[1730060045762,2.8306,176.85,176.83,2.8307]
[1730060047365,2.8304,176.86,176.83,2.8307]
[1730060050165,2.8303,176.86,176.83,2.8307]
[1730060050470,9.7776748,176.86,176.83,2.8307]
[1730060053472,9.7776748,176.86,176.84,2.8306]
[1730060062776,6.9473748,176.85,176.69,8.499]
[1730060062973,6.9473748,176.85,176.6,40.69306567]
[1730060062974,9.7784748,176.81,176.79,2.8314]
[1730060063173,6.9473748,176.8,176.68,4.06]
[1730060063372,4.06,176.82,176.8,2.8312]
[1730060063684,13.8381748,176.83,176.8,2.8312]
[1730060063871,11.0073748,176.83,176.8,2.8312]
[1730060064077,2.831,176.82,176.8,2.8312]
[1730060064377,2.831,176.82,176.78,6.9473748]
[1730060064577,2.831,176.82,176.79,2.8313]
[1730060064774,55.0,176.89,176.78,6.9473748]
[1730060065081,55.0,176.89,176.82,2.8308]
[1730060065082,6.9473748,176.86,176.82,2.8308]
[1730060065484,2.8305,176.85,176.82,2.8308]
[1730060066676,2.8305,176.85,176.83,2.8308]
[1730060067177,9.7776748,176.86,176.81,6.9473748]
[1730060067874,9.7776748,176.86,176.83,2.8307]
[1730060068070,2.8303,176.86,176.83,2.8307]
[1730060072473,2.8303,176.86,176.81,9.7784748]
[1730060072777,6.9473748,176.84,176.79,1.1642]
[1730060072978,6.9473748,176.84,176.78,11.0073748]
[1730060073286,6.9473748,176.83,176.78,6.9473748]
[1730060074384,4.06,176.84,176.77,2.8316]
[1730060074385,6.9473748,176.82,176.77,2.8316]
[1730060075090,9.7784748,176.82,176.77,2.8316]
[1730060076693,2.8311,176.81,176.77,2.8316]
[1730060078583,2.8313,176.8,176.77,2.8316]
[1730060079588,2.8316,176.78,176.75,9.4333748]
[1730060079792,2.8316,176.78,176.75,6.9473748]
[1730060080092,6.9473748,176.78,176.74,6.8921]
[1730060080298,6.9473748,176.75,176.62,4.06]
[1730060080587,6.9473748,176.73,176.68,6.9473748]
[1730060080891,4.06,176.74,176.68,6.9473748]
[1730060081194,2.8324,176.73,176.68,9.7804748]
[1730060082392,2.8325,176.72,176.68,2.8331]
[1730060083190,6.9473748,176.73,176.67,6.9473748]
[1730060083394,2.8326,176.72,176.68,2.8331]
[1730060083988,6.9473748,176.73,176.68,2.8331]
[1730060084296,2.8328,176.71,176.68,2.8331]
[1730060089699,8.1231,176.82,176.71,2.8327]
[1730060089895,6.9473748,176.77,176.72,6.9473748]
[1730060090097,11.0073748,176.77,176.72,6.9473748]
[1730060090289,2.8319,176.76,176.73,2.8323]
[1730060090603,6.9473748,176.74,176.69,1.2572]
[1730060090804,9.7798748,176.73,176.69,4.0901]
[1730060091001,2.8325,176.73,176.69,8.2045748]
[1730060091298,2.8325,176.73,176.7,2.8327]
[1730060091501,6.9473748,176.75,176.7,6.9473748]
[1730060092493,2.8323,176.74,176.71,2.8326]
[1730060097001,6.9473748,176.75,176.7,6.9473748]
[1730060097196,9.7798748,176.73,176.69,8.2045748]
[1730060098803,9.7798748,176.73,176.7,2.8328]
[1730060100395,6.9473748,176.73,176.69,8.2045748]
[1730060100599,6.9473748,176.73,176.71,2.8327]
[1730060100904,6.9473748,176.73,176.68,4.06]
[1730060101104,6.9473748,176.73,176.7,2.8328]
[1730060101897,9.7798748,176.73,176.7,2.8328]
[1730060104006,2.8326,176.72,176.7,2.8328]
[1730060105202,6.9473748,176.72,176.66,6.9473748]
[1730060105408,2.8329,176.7,176.68,2.8332]
[1730060105802,6.9473748,176.7,176.65,1.1777]
[1730060105999,2.8332,176.68,176.66,2.8334]
[1730060106203,6.9473748,176.7,176.64,8.1236748]
[1730060106401,9.7806748,176.68,176.65,2.8336]
[1730060108105,4.06,176.71,176.63,2.8339]
[1730060108106,9.7808748,176.67,176.63,2.8339]
[1730060108306,6.9473748,176.66,176.61,6.9473748]
[1730060108515,6.9473748,176.66,176.6,6.9473748]
[1730060109011,2.8337,176.65,176.62,2.834]
[1730060111413,4.06,176.67,176.64,2.8337]
[1730060111721,4.06,176.67,176.63,6.9473748]
[1730060111919,2.8333,176.68,176.63,6.9473748]
[1730060112213,2.8333,176.68,176.65,2.8336]
[1730060112809,4.06,176.7,176.64,6.9473748]
[1730060113009,2.8331,176.69,176.66,2.8334]
[1730060114813,9.7803748,176.7,176.66,2.8334]
[1730060115016,9.7803748,176.7,176.64,6.9473748]
[1730060115511,2.8326,176.72,176.63,4.06]
[1730060115704,6.8926,176.72,176.67,6.9473748]
[1730060116505,6.8926,176.72,176.69,2.8329]
[1730060116821,1.2067,176.74,176.7,6.9473748]
[1730060116822,4.06,176.74,176.7,6.9473748]
[1730060117715,6.8923,176.74,176.71,2.8326]
[1730060120415,2.8323,176.74,176.71,2.8326]
[1730060120620,9.7792748,176.77,176.73,2.8323]
[1730060121014,6.9473748,176.77,176.71,6.9473748]
[1730060121513,2.8319,176.76,176.73,2.8323]
[1730060131628,2.8319,176.76,176.74,2.8322]
[1730060131927,2.8319,176.76,176.71,6.9473748]
[1730060132130,2.8319,176.76,176.73,2.8323]
[1730060132531,2.8319,176.76,176.71,6.9473748]
[1730060132727,2.8319,176.76,176.73,2.8324]
[1730060136830,2.8321,176.75,176.73,2.8324]
[1730060138627,2.8318,176.77,176.74,2.8321]
[1730060139823,6.9473748,176.78,176.73,6.9473748]
[1730060140137,6.9473748,176.8,176.74,6.9473748]
[1730060140830,6.9473748,176.79,176.76,2.8318]
[1730060142233,2.8317,176.78,176.76,2.8318]
[1730060142643,6.9473748,176.8,176.77,2.8316]
[1730060142841,9.7787748,176.8,176.77,2.8316]
[1730060144733,2.8317,176.78,176.76,2.8319]
[1730060144929,2.8317,176.78,176.74,6.9473748]
[1730060145534,2.8317,176.78,176.75,2.8319]
[1730060146435,6.9473748,176.79,176.74,6.9473748]
[1730060146640,9.7788748,176.79,176.76,2.8318]
[1730060151746,2.8316,176.78,176.76,2.8318]
[1730060153744,2.832,176.76,176.73,2.8323]
[1730060154951,4.06,176.82,176.73,6.9473748]
[1730060155143,6.9473748,176.8,176.73,6.9473748]
[1730060155952,2.8316,176.78,176.75,2.8319]
[1730060159455,2.8316,176.78,176.74,2.8321]
[1730060159657,2.8316,176.78,176.73,6.9473748]
[1730060160360,2.8316,176.78,176.75,2.8319]
[1730060161856,3.7493,176.85,176.75,6.9473748]
[1730060162057,6.9473748,176.82,176.77,6.9473748]
[1730060162453,11.0073748,176.84,176.8,2.8312]
[1730060162955,2.8308,176.83,176.8,2.8312]
[1730060163349,11.0073748,176.84,176.8,2.8312]
[1730060163553,2.831,176.82,176.8,2.8312]
[1730060166861,2.8314,176.8,176.77,2.8317]
[1730060167057,9.7787748,176.8,176.77,2.8317]
[1730060167760,6.9473748,176.8,176.73,6.9473748]
[1730060167957,6.9473748,176.78,176.73,6.9473748]
[1730060168158,9.7790748,176.78,176.75,2.8319]
[1730060169262,2.8318,176.77,176.75,2.8319]
[1730060169764,6.9473748,176.77,176.67,4.06]
[1730060169964,6.9473748,176.74,176.69,4.85137769]
[1730060170265,6.9473748,176.74,176.7,4.85137769]
[1730060170470,6.9473748,176.74,176.68,9.3671748]
[1730060170673,6.9473748,176.74,176.69,4.85139899]
[1730060170858,6.9473748,176.72,176.67,6.9473748]
[1730060171060,4.06,176.76,176.68,2.8331]
[1730060171061,6.9473748,176.71,176.68,2.8331]
[1730060172161,9.7801748,176.71,176.68,2.8331]
[1730060175765,1.2652,176.75,176.68,6.9473748]
[1730060175969,4.06,176.75,176.7,6.9473748]
[1730060176561,6.8922,176.75,176.71,2.8327]
[1730060177167,13.8395748,176.75,176.72,2.8325]
[1730060180564,11.0073748,176.75,176.7,6.9473748]
[1730060180764,2.8326,176.72,176.7,2.8328]
[1730060182276,2.8324,176.73,176.7,2.8328]
[1730060182774,6.9473748,176.73,176.69,2.833]
[1730060183166,2.8326,176.72,176.69,2.833]
[1730060184675,6.9473748,176.73,176.65,5.2935]
[1730060184676,2.8328,176.71,176.68,2.8331]
[1730060185376,2.8326,176.72,176.69,2.8329]
[1730060186377,4.06,176.75,176.7,6.9473748]
[1730060186574,11.0073748,176.75,176.7,6.9473748]
[1730060187377,2.8323,176.74,176.71,2.8326]
[1730060187578,4.06,176.76,176.7,6.9473748]
[1730060187776,6.9473748,176.77,176.7,6.9473748]
[1730060187983,11.0073748,176.77,176.7,6.9473748]
[1730060188276,2.8322,176.75,176.72,2.8325]
[1730060189376,2.8322,176.75,176.7,6.9473748]
[1730060189575,2.8322,176.75,176.73,2.8324]
[1730060191683,2.8319,176.76,176.74,2.8322]
[1730060197984,1.1759,176.81,176.74,6.9473748]
[1730060198187,4.06,176.8,176.75,6.9473748]
[1730060198687,6.8913,176.8,176.75,6.9473748]
[1730060199187,4.06,176.81,176.77,6.9473748]
[1730060199381,185.30316292,176.83,176.77,6.9473748]
[1730060199586,4.06,176.82,176.77,6.9473748]
[1730060199783,2.8312,176.81,176.77,6.9473748]
[1730060200186,4.06,176.82,176.79,2.8314]
[1730060200390,2.8311,176.81,176.77,6.9473748]
[1730060200692,4.06,176.82,176.78,2.8315]
[1730060201393,6.9473748,176.81,176.78,2.8315]
[1730060202397,2.8313,176.8,176.78,2.8315]
[1730060212294,1.2781,176.86,176.79,6.9473748]